Cogmind - Beta 9.4 @@@ ROGUE MODE // 2020.01.14 @ 22:00:10 Player: winny Result: Self-destructed Performance ------------- Evolutions (1) 500 Regions Visited (3) 600 Robots Destroyed (13) 65 Value Destroyed (515) 515 Prototype IDs (0) 0 Alien Tech Used (0) 0 Bonus (0) 0 TOTAL SCORE: 1680 Bonus ------- None Cogmind --------- Core Integrity 387/400 Matter 204/300 Energy 262/265 System Corruption 0% Temperature Cool (3) Movement Hovering (52) Location -9/Materials Parts ------- > --- POWER (1) -------- Improved Ion Engine > --- PROPULSION (3) --- Hover Unit Hover Unit Hover Unit > --- UTILITY (3) ------ Small Storage Unit Targeting Computer > --- WEAPON (2) ------- Small Laser Assault Rifle > --- INVENTORY (6) ---- Ion Engine Improved Ion Engine Assault Rifle Grenade Launcher Mining Laser Hammer Peak State ------------ > --- POWER ------------ Improved Ion Engine > --- PROPULSION ------- Hover Unit Hover Unit Hover Unit > --- UTILITY ---------- Small Storage Unit Targeting Computer > --- WEAPON ----------- Assault Rifle Assault Rifle > --- INVENTORY -------- Ion Engine Light Ion Engine Small Laser Grenade Launcher Mining Laser Hammer [Rating: 9] Favorites ----------- Power Light Ion Engine Engine Light Ion Engine Propulsion Hover Unit Leg Aluminum Leg Hover Unit Hover Unit Utility Small Storage Unit Storage Small Storage Unit Processor Targeting Computer Weapon Assault Rifle Energy Gun Small Laser Ballistic Gun Assault Rifle Launcher Grenade Launcher Build | -11 -10 -10 -9 ------- Run | Scr Mat Min Mat Slots Evolved 2 | . . . 2 Power . | . . . . Propulsion 1 | . . . 1 Utility 1 | . . . 1 Weapon . | . . . . Parts Attached 17 | . 10 4 3 Power 1 | . . . 1 Engine 1 | . . . 1 Core . | . . . . Reactor . | . . . . Propulsion 4 | . 3 . 1 Treads . | . . . . Leg . | . . . . Wheel . | . . . . Hover 4 | . 3 . 1 Flight . | . . . . Utility 1 | . 1 . . Device . | . . . . Storage . | . . . . Processor 1 | . 1 . . Hackware . | . . . . Protection . | . . . . Artifact . | . . . . Weapon 11 | . 6 4 1 Energy Gun 1 | . . . 1 Energy Cannon . | . . . . Ballistic Gun 6 | . 4 2 . Ballistic Cannon . | . . . . Launcher 4 | . 2 2 . Special Weapon . | . . . . Impact Weapon . | . . . . Slashing Weapon . | . . . . Piercing Weapon . | . . . . Special Melee Weapon . | . . . . Unidentified Prototypes . | . . . . Parts Lost . | . . . . Power . | . . . . Propulsion . | . . . . Utility . | . . . . Weapon . | . . . . Highest Loss Streak . | . . . . Average Slot Usage (%) 95 | . 95 100 88 Engine 13 | . 14 14 11 Leg 8 | . 12 . . Hover 19 | . 14 28 33 Storage 13 | . 14 14 11 Processor 10 | . 9 14 11 Ballistic Gun 25 | . 27 27 16 Naked Turns . | . . . . Heaviest Build 15 | 10 11 12 15 Greatest Support 20 | 20 20 12 18 Greatest Overweight (x) . | . . . . Average Overweight (x) . | . . . . Largest Inventory Capacity 6 | 6 6 6 6 Average Capacity 6 | 6 6 6 6 Most Carried 6 | 5 6 6 6 Average Carried 5 | 5 5 5 5 Final Capacity 6 | 6 6 6 6 Final Carried 6 | 4 6 6 6 Class Distribution -------------------- 100% | Mutant Dominant Class ---------------- Mutant | -10/Materials Mutant | -10/Mines Mutant | -9/Materials Resources | -11 -10 -10 -9 ----------- Run | Scr Mat Min Mat Matter Collected 511 | 200 118 134 59 Remotely . | . . . . Salvage Created 386 | . 152 149 85 Parts 17 | . 6 6 5 Haulers Intercepted . | . . . . Recyclers Shooed 1 | . . 1 . Parts Field Recycled . | . . . . Retrieved Matter . | . . . . Parts Self-Destructed . | . . . . Prevented . | . . . . Kills | -11 -10 -10 -9 ------- Run | Scr Mat Min Mat Combat Hostiles Destroyed 11 | . 4 6 1 Guns 5 | . 3 1 1 AOE 6 | . 1 5 . Classes Destroyed 5 | . 2 1 2 Operator 1 | . 1 . . Watcher 1 | . . . 1 Swarmer 2 | . . 2 . Grunt 8 | . 4 4 . Sentry 1 | . . . 1 Best Kill Streak 4 | . 2 4 2 Combat Bots Only 4 | . 2 4 1 Max Kills in Single Turn 2 | . 1 2 1 Gunslinging . | . . . . Exploded 2 | . 1 2 . Melee . | . . . . Uniques/NPCs Destroyed . | . . . . Combat | -11 -10 -10 -9 -------- Run | Scr Mat Min Mat Damage Taken 247 | . 162 72 13 Core 32 | . 12 7 13 Absorbed by Shields . | . . . . Core Remaining (%) 96 | 100 . 92 . Volleys Fired 42 | . 30 8 4 Largest 2 | . 2 2 2 Hottest 60 | . 50 50 60 Shots Fired 82 | . 60 15 7 Gun 77 | . 58 12 7 Cannon . | . . . . Launcher 5 | . 2 3 . Special . | . . . . Kinetic 75 | . 58 12 5 Thermal 2 | . . . 2 Explosive 5 | . 2 3 . Electromagnetic . | . . . . Robot Hit Streak 11 | . 11 3 4 Robot Miss Streak 5 | . 3 5 1 Penetration Max . | . . . . Secondary Targets . | . . . . Shots Hit Robots 46 | . 37 4 5 Core Hits 22 | . 12 7 3 Critical Hits . | . . . . Critical Kills . | . . . . Critical Parts Destroyed . | . . . . Melee Attacks . | . . . . Impact . | . . . . Slashing . | . . . . Piercing . | . . . . Sneak Attacks . | . . . . Combat Hostiles . | . . . . Follow-up Attacks . | . . . . Damage Inflicted 1024 | . 531 434 59 Guns 405 | . 321 25 59 Cannons . | . . . . Explosions 619 | . 210 409 . Melee . | . . . . Ramming . | . . . . Kinetic 382 | . 321 25 36 Thermal 232 | . . 209 23 Explosive 410 | . 210 200 . Electromagnetic . | . . . . Impact . | . . . . Slashing . | . . . . Piercing . | . . . . Highest Corruption . | . . . . Average Corruption . | . . . . Corruption Purged . | . . . . Overload Shots . | . . . . Overflow Damage 55 | . 2 53 . Projectiles . | . . . . Explosions 55 | . 2 53 . Melee . | . . . . Knockbacks . | . . . . Impact . | . . . . Kinetic . | . . . . Secondary . | . . . . Self-Inflicted Damage . | . . . . Shots . | . . . . Rammed . | . . . . Targets Rammed . | . . . . Kicked . | . . . . Crushed . | . . . . Highest Temperature 12 | . 12 7 6 Average Temperature 5 | . 6 5 3 Received Heat Transfer 81 | . 72 9 . Siege Activations . | . . . . Robots Corrupted . | . . . . Combat Hostiles . | . . . . Parts Fried . | . . . . Impact Corruptions . | . . . . Robots Melted . | . . . . Combat Hostiles . | . . . . Parts Melted . | . . . . Heat Transferred 300 | . . 250 50 Parts Sabotaged . | . . . . Parts Stolen . | . . . . Parts Stripped . | . . . . Power Chain Reactions . | . . . . Missiles Intercepted . | . . . . Alert | -11 -10 -10 -9 ------- Run | Scr Mat Min Mat Peak Influence 360 | . 119 360 209 Average Influence 93 | . 63 154 171 Maximum Alert Level 1 | . . 1 1 Low Security (%) 88 | 100 100 56 75 Level 1 11 | . . 43 24 Level 2 . | . . . . Level 3 . | . . . . Level 4 . | . . . . Level 5 . | . . . . High Security . | . . . . Max Security . | . . . . Squads Dispatched 2 | . 2 . . Investigation . | . . . . Extermination . | . . . . Reinforcement 2 | . 2 . . Assault . | . . . . Garrison . | . . . . Intercept . | . . . . Construction Impeded . | . . . . Haulers Reinforced . | . . . . Stealth | -11 -10 -10 -9 --------- Run | Scr Mat Min Mat Distress Signals 3 | . 2 . 1 Communications Jammed . | . . . . Distress Signals . | . . . . Times Spotted 22 | . 14 6 2 Peak Tracking Total 3 | . 3 2 3 Tactical Retreats . | . . . . Traps | -11 -10 -10 -9 ------- Run | Scr Mat Min Mat Traps Triggered 2 | . 2 . . Indirectly . | . . . . Trap Hack Attempts . | . . . . Triggered . | . . . . Disarmed . | . . . . Reprogrammed . | . . . . Reused . | . . . . Traps Extracted . | . . . . Installed . | . . . . Triggered . | . . . . Machines | -11 -10 -10 -9 ---------- Run | Scr Mat Min Mat Machines Disabled 12 | . . 12 . Max in Single Turn 12 | . . 12 . Machines Sabotaged . | . . . . Garrisons Compromised . | . . . . Overloaded Fab Kills . | . . . . Fab Network Shutdowns . | . . . . Hacking | -11 -10 -10 -9 --------- Run | Scr Mat Min Mat Machines Accessed 4 | . 4 . . Terminals 2 | . 2 . . Fabricators . | . . . . Repair Stations 1 | . 1 . . Recycling Units 1 | . 1 . . Scanalyzers . | . . . . Garrison Access . | . . . . Total Hacks 10 | . 10 . . Successful 4 | . 4 . . Failed 6 | . 6 . . Catastrophic 2 | . 2 . . Database Lockouts . | . . . . Manual . | . . . . Terminals 5 | . 5 . . Fabricators . | . . . . Repair Stations 2 | . 2 . . Recycling Units 3 | . 3 . . Scanalyzers . | . . . . Garrison Access . | . . . . Terminal Hacks 2 | . 2 . . Emergency Access Points 1 | . 1 . . Recall Reinforcements 1 | . 1 . . Fabricator Hacks . | . . . . Repair Station Hacks 2 | . 2 . . Scan Component 1 | . 1 . . Repair 1 | . 1 . . Recycling Unit Hacks . | . . . . Scanalyzer . | . . . . Garrison Access Hacks . | . . . . Unauthorized Hacks . | . . . . Terminals . | . . . . Fabricators . | . . . . Repair Stations . | . . . . Recycling Units . | . . . . Scanalyzers . | . . . . Garrison Access . | . . . . Data Cores Recovered . | . . . . Used . | . . . . Hacking Detections 3 | . 3 . . Full Trace Events . | . . . . Feedback Events . | . . . . Feedback Blocked . | . . . . Robot Schematics Acquired . | . . . . Robots Built . | . . . . Matter . | . . . . Time . | . . . . Total Robot Build Rating . | . . . . Part Schematics Acquired . | . . . . Parts Built . | . . . . Matter . | . . . . Time . | . . . . Total Part Build Rating . | . . . . Parts Repaired 1 | . 1 . . Time 26 | . 26 . . Parts Recycled . | . . . . Recycled Matter . | . . . . Retrieved Matter . | . . . . Retrieved Components . | . . . . Parts Scanalyzed . | . . . . Part Schematics Acquired . | . . . . Parts Damaged . | . . . . Bothacking | -11 -10 -10 -9 ------------ Run | Scr Mat Min Mat Used RIF Installer . | . . . . Robots Hacked . | . . . . Non-combat . | . . . . Combat . | . . . . Robot Hacks Applied . | . . . . Relay Couplers Released . | . . . . Robots Rewired . | . . . . Allies Hacked . | . . . . Hacks Repelled . | . . . . Allies | -11 -10 -10 -9 -------- Run | Scr Mat Min Mat Total Allies 1 | . . 1 . Largest Group 1 | . . 1 1 Highest-Rated Group 31 | . . 31 31 Highest-Rated Ally 31 | . . 31 31 Total Orders . | . . . . Ally Attacks 6 | . . 3 3 Total Damage 63 | . . 21 42 Kills . | . . . . Allies Corrupted . | . . . . Allies Melted . | . . . . Intel | -11 -10 -10 -9 ------- Run | Scr Mat Min Mat Robot Analysis Total . | . . . . Derelict Logs Recovered 1 | . . 1 . Drone Launches . | . . . . Drone Recoveries . | . . . . Exploration | -11 -10 -10 -9 ------------- Run | Scr Mat Min Mat Turns Passed 711 | 1 487 146 77 Spaces Moved 658 | 1 368 183 106 Core . | . . . . Treads . | . . . . Legs 151 | 1 150 . . Wheels . | . . . . Hover 507 | . 218 183 106 Flight . | . . . . Fastest Speed 52 | 120 56 56 52 Average Speed 70 | 120 82 56 52 Slowest Speed 120 | 120 120 56 52 Overloaded Moves . | . . . . Propulsion Burnouts . | . . . . Robots Hopped . | . . . . Cave-ins Triggered . | . . . . Exploration Rate (%) 28 | 2 56 46 8 Regions Visited 3 Branch Regions 1 Pre-discovered Areas . | . . . . Known Exits Taken . | . . . . Unknown Exits Taken 3 | 1 1 1 . Scrap Searched 1 | . . 1 . Spaces Dug . | . . . . Terrain Destroyed 61 | . 13 48 . Melee . | . . . . Projectile . | . . . . AOE 61 | . 13 48 . Actions | -11 -10 -10 -9 --------- Run | Scr Mat Min Mat Total 828 | 2 496 210 120 Wait 93 | . 76 12 5 Move 655 | . 367 182 106 Hop . | . . . . Pick Up 9 | . 6 2 1 Fast Attach 2 | . 2 . . Attach 2 | . 1 . 1 Detach 1 | . 1 . . Swap 13 | . 7 4 2 Drop 11 | 2 6 2 1 Fire 42 | . 30 8 4 Melee . | . . . . Ram . | . . . . Kick . | . . . . Crush . | . . . . Escape Stasis . | . . . . Rewire . | . . . . Trap . | . . . . Miscellaneous . | . . . . Route ------- -11/Scrapyard -10/Materials (discovered 3 exits: [*Mat] / [*Min x2]) -10/Mines -9/Materials (discovered 2 exits: Min x2) History --------- Turn | Location | Event 2 | -11/Scrapyard | Discovered new exit (range 0) 2 | -11/Scrapyard | Entered Materials 343 | -10/Materials | Build established: Mutant 348 | -10/Materials | Repaired Hover Unit 374 | -10/Materials | Discovered new exit (range 16) 408 | -10/Materials | Discovered new exit (range 14) 415 | -10/Materials | Discovered new exit (range 11) 489 | -10/Materials | Entered Mines 510 | -10/Mines | Received a Mining Laser from a helpful Derelict 598 | -10/Mines | Discovered new exit (range 15) 635 | -10/Mines | Entered Materials 635 | -9/Materials | Accompanied by 1 ally 635 | -9/Materials | Evolved 2 slots: Propulsion x1, Utility x1 636 | -9/Materials | Identified exit to Mines 712 | -9/Materials | Self-destructed Last Messages --------------- 00595_ Acquired 12 matter. 00598_ EXIT=FOUND 00602_ U-05 Engineer builds a Wall. 00602_ S-10 Pest destroyed. 00605_ U-05 Engineer builds a Wall. 00620_ S-10 Pest destroyed. 00623_ U-05 Engineer lays Concrete. 00624_ Acquired 5 matter. 00626_ U-05 Engineer builds a Wall. 00628_ Acquired 7 matter. 00634_ U-05 Engineer builds a Wall. PARAMETERS=PROPULSION_1,UTILITY_1 LOCATION=UNKNOWN GOAL=ESCAPE Loading 2 Mines entrances... 00687_ W-16 Scout destroyed. 00693_ Y-45 Defender destroyed. 00700_ Acquired 59 matter. 00702_ Dropped Lgt. Ion Engine. 00703_ Acquired Imp. Ion Engine. Map ----- +----------------------------------------------------+ | ????????????????????????????????????? ??????? | | ???????????????????????????????????? "????? | | ???????????????????????????????????? "????? | | ???????????????????????????????????? ?? | | ???????????????????????????????????? ??? | | ???????????????????????????????????? """? | | ????????????????????????????????????# """"=% | | ????????????????????????????????????# """" ! | | ???????????????????????????########## | | ???????????????????????????# # | | ???????????????????????????# # | | ???????????????????????????# """ # | | ???????????????????????????# """ # !! | | ???????????????????????????# """ # !! | | ???????????????????????????# """ + !! | | ???????????????????????????# """ # | | ???????????????????????????# # | | ???????????????????????????# # | | ???????????????????????????########## | | ???????????????????????????????#! * | | ???????????????????????????????# #### | | ???????????????????????###+###?# #####+##### | | ???????????????????????# #?# # # | | ???????????????????##### ###g# """ """ # | | ???????????????????#** # """ """ # | | ???????????????????#**@ ##### """ """ #### | | ???????????????????#]] #???# #??? | | ???????????????????#]] #######???# #??? | | ???????????????????#!! #?????????# #??? | | ???????????????????#!! #?????????# #??? | | ???????????????????####??????????###########??? | | ??????????????????????????????????????????????? | | ??????????????????????????????????????????????? | | ??????????????????????????????????????????????? | | | | | | | | | | | | | | | | | | | | | | | | | | | | | | | | | +----------------------------------------------------+ Best States ------------- Heat Dissipation 28 Energy Generation 12 Energy Capacity 265 Matter Stores 300 Matter Capacity 300 Sight Range 16 Terrain Scan Density 10 Evasion (%) 54 Targeting Accuracy 5 Item Schematics ----------------- None Robot Schematics ------------------ None Fabricated ------------ Nothing Alien Tech Used ----------------- None Achievements -------------- It Was An Accident, I Swear Challenges ------------ None Game ------ Seed ChipVariableGravjet Manual? 0 Play Time 00:15:36 Cumulative 17.7 hours Start 2020.01.04 @ 13:17:33 End 2020.01.14 @ 22:00:10 Sessions 3 Manual Loads 0 Difficulty Rogue Special Mode None Game No. 10 Rogue 9 Adventurer 1 Explorer 0 Win Type - Total 0 Types 0/0/0/0/0/0/0 Lore% 12 Gallery% 18 Achievement% 17 Wizard Run 0 Options --------- ASCII 0 Keyboard 1 Movement Vi Keybinds 0 Fullscreen 1 Font 24/Smallcaps Map View 76x50 Tactical HUD 1 Map Filters NONE Filters NONE Steam 1 RUN: 25f64505-4679-4642-a268-89fec680fc9b